[Event "*** Titled Tuesday Blitz"]
[Site "Chess.com"]
[Date "2020.01.07"]
[Round "1"]
[White "Sashadav97"]
[Black "TwentyHourADay"]
[Result "1-0"]
[WhiteElo "2572"]
[BlackElo "2205"]
[TimeControl "180+2"]
[EndTime "13:08:02 PST"]
[Termination "Sashadav97 won by checkmate"]

1. d4 {[%clk 0:03:01.9]} 1... Nf6 {[%clk 0:02:57.6]} 2. c4 {[%clk 0:03:00.9]}
2... g6 {[%clk 0:02:58]} 3. Nc3 {[%clk 0:03:02]} 3... Bg7 {[%clk 0:02:56]} 4. e4
{[%clk 0:03:02.9]} 4... d6 {[%clk 0:02:56.8]} 5. Be2 {[%clk 0:03:04]} 5... O-O
{[%clk 0:02:57.6]} 6. Be3 {[%clk 0:03:05.5]} 6... Nbd7 {[%clk 0:02:57.8]} 7. g4
{[%clk 0:02:59.9]} 7... e5 {[%clk 0:02:57.1]} 8. d5 {[%clk 0:02:58.5]} 8... Nc5
{[%clk 0:02:57.3]} 9. f3 {[%clk 0:02:58.7]} 9... a5 {[%clk 0:02:53.5]} 10. h4
{[%clk 0:02:58.6]} 10... h5 {[%clk 0:02:52.5]} 11. g5 {[%clk 0:02:50.6]} 11...
Nfd7 {[%clk 0:02:52.9]} 12. Nh3 {[%clk 0:02:34.9]} 12... Qe7 {[%clk 0:02:46.3]}
13. Qd2 {[%clk 0:02:35.1]} 13... c6 {[%clk 0:02:33.9]} 14. O-O-O {[%clk
0:02:34.4]} 14... cxd5 {[%clk 0:02:27]} 15. exd5 {[%clk 0:02:24.4]} 15... b6
{[%clk 0:02:17]} 16. Nf2 {[%clk 0:02:23.2]} 16... Ba6 {[%clk 0:02:17]} 17. Kb1
{[%clk 0:02:22.6]} 17... Rfc8 {[%clk 0:02:13.5]} 18. Rc1 {[%clk 0:02:23.4]}
18... Rab8 {[%clk 0:02:05.6]} 19. Nfe4 {[%clk 0:02:24.4]} 19... Nb7 {[%clk
0:01:50]} 20. Nb5 {[%clk 0:02:21.1]} 20... Bxb5 {[%clk 0:01:50.1]} 21. cxb5
{[%clk 0:02:23]} 21... Nbc5 {[%clk 0:01:49.7]} 22. Bxc5 {[%clk 0:02:18.8]} 22...
Nxc5 {[%clk 0:01:47.8]} 23. Nxc5 {[%clk 0:02:20]} 23... bxc5 {[%clk 0:01:43.6]}
24. Qxa5 {[%clk 0:02:16.8]} 24... e4 {[%clk 0:01:44]} 25. f4 {[%clk 0:02:08.7]}
25... e3 {[%clk 0:01:39.8]} 26. Qa4 {[%clk 0:02:06.7]} 26... Ra8 {[%clk
0:01:29.6]} 27. Qc4 {[%clk 0:01:55.5]} 27... Bd4 {[%clk 0:01:29.4]} 28. Bd3
{[%clk 0:01:43.1]} 28... Ra5 {[%clk 0:00:57.5]} 29. a4 {[%clk 0:01:31.3]} 29...
Rca8 {[%clk 0:00:51.8]} 30. b3 {[%clk 0:01:32.3]} 30... Re8 {[%clk 0:00:37]} 31.
Rce1 {[%clk 0:01:29.7]} 31... Qd7 {[%clk 0:00:33.2]} 32. f5 {[%clk 0:01:29]}
32... gxf5 {[%clk 0:00:31.1]} 33. Rhf1 {[%clk 0:01:30.1]} 33... Re5 {[%clk
0:00:31.3]} 34. Qc2 {[%clk 0:01:31.2]} 34... c4 {[%clk 0:00:24.9]} 35. Qxc4
{[%clk 0:01:13.1]} 35... Bc5 {[%clk 0:00:25.7]} 36. Qf4 {[%clk 0:01:12]} 36...
Ra8 {[%clk 0:00:22.4]} 37. Bxf5 {[%clk 0:01:12.8]} 37... Qc7 {[%clk 0:00:22.7]}
38. g6 {[%clk 0:01:12]} 38... fxg6 {[%clk 0:00:20.9]} 39. Bxg6 {[%clk
0:01:13.2]} 39... Qg7 {[%clk 0:00:21.9]} 40. Rg1 {[%clk 0:01:10]} 40... Kh8
{[%clk 0:00:19.1]} 41. Bc2 {[%clk 0:01:07.5]} 41... Qe7 {[%clk 0:00:15.9]} 42.
Qh6+ {[%clk 0:01:07.8]} 42... Qh7 {[%clk 0:00:16]} 43. Qxh7# {[%clk 0:01:09.7]}
1-0

[Event "*** Titled Tuesday Blitz"]
[Site "Chess.com"]
[Date "2020.01.07"]
[Round "1"]
[White "JakubPulpan"]
[Black "PawnEatingZombie"]
[Result "1-0"]
[WhiteElo "2634"]
[BlackElo "2299"]
[TimeControl "180+2"]
[EndTime "13:08:08 PST"]
[Termination "JakubPulpan won by resignation"]

1. c4 {[%clk 0:02:59.5]} 1... e6 {[%clk 0:03:00.7]} 2. Nc3 {[%clk 0:02:59.6]}
2... d5 {[%clk 0:03:01.8]} 3. d4 {[%clk 0:02:55.6]} 3... Bb4 {[%clk 0:03:01.5]}
4. Bf4 {[%clk 0:02:54.8]} 4... dxc4 {[%clk 0:02:59.1]} 5. e3 {[%clk 0:02:55]}
5... b5 {[%clk 0:02:59.5]} 6. Be2 {[%clk 0:02:48.2]} 6... Bb7 {[%clk 0:02:57.2]}
7. Bf3 {[%clk 0:02:46.5]} 7... c6 {[%clk 0:02:15.3]} 8. Ne2 {[%clk 0:02:47.2]}
8... a6 {[%clk 0:02:13.6]} 9. O-O {[%clk 0:02:47]} 9... Nf6 {[%clk 0:02:14.3]}
10. a4 {[%clk 0:02:46]} 10... Nd5 {[%clk 0:01:59.2]} 11. axb5 {[%clk 0:02:35.7]}
11... axb5 {[%clk 0:01:58.4]} 12. Rxa8 {[%clk 0:02:36.2]} 12... Bxa8 {[%clk
0:02:00.3]} 13. Nxd5 {[%clk 0:02:34.8]} 13... cxd5 {[%clk 0:01:57]} 14. Nc3
{[%clk 0:02:30.6]} 14... Bc6 {[%clk 0:01:46.3]} 15. e4 {[%clk 0:02:28.4]} 15...
Bxc3 {[%clk 0:01:38.9]} 16. exd5 {[%clk 0:02:09.7]} 16... Bxd5 {[%clk
0:01:36.3]} 17. Bxd5 {[%clk 0:02:09.1]} 17... Qxd5 {[%clk 0:01:32.6]} 18. bxc3
{[%clk 0:02:05.8]} 18... Nc6 {[%clk 0:01:29.3]} 19. Qg4 {[%clk 0:02:06.1]} 19...
O-O {[%clk 0:01:03.4]} 20. Bh6 {[%clk 0:02:06.3]} 20... g6 {[%clk 0:01:04.9]}
21. Bxf8 {[%clk 0:02:06.7]} 21... Kxf8 {[%clk 0:01:06.8]} 22. Qf4 {[%clk
0:02:06.3]} 22... Kg7 {[%clk 0:00:56.7]} 23. Qd2 {[%clk 0:02:04.6]} 23... b4
{[%clk 0:00:56]} 24. cxb4 {[%clk 0:02:05.3]} 24... Nxd4 {[%clk 0:00:52.2]} 25.
Rd1 {[%clk 0:02:05.4]} 25... e5 {[%clk 0:00:53.2]} 26. Kh1 {[%clk 0:02:05.2]}
26... Qe4 {[%clk 0:00:31.5]} 27. Qe3 {[%clk 0:01:58.9]} 27... Qxe3 {[%clk
0:00:24.7]} 28. fxe3 {[%clk 0:01:59.4]} 28... Nc2 {[%clk 0:00:25.4]} 29. Rc1
{[%clk 0:01:52.6]} 29... Nxb4 {[%clk 0:00:24.6]} 30. Rxc4 {[%clk 0:01:53.2]}
30... Nd3 {[%clk 0:00:23.7]} 31. Kg1 {[%clk 0:01:52.4]} 31... f5 {[%clk
0:00:19.5]} 32. Rc7+ {[%clk 0:01:51.4]} 32... Kh6 {[%clk 0:00:19.2]} 33. Kf1
{[%clk 0:01:53.3]} 33... e4 {[%clk 0:00:19.6]} 34. Ke2 {[%clk 0:01:54.1]} 34...
Ne5 {[%clk 0:00:16.7]} 35. h3 {[%clk 0:01:55.2]} 35... g5 {[%clk 0:00:09.4]} 36.
Rc5 {[%clk 0:01:55.6]} 36... Ng6 {[%clk 0:00:04.2]} 37. Rxf5 {[%clk 0:01:56.7]}
37... Nh4 {[%clk 0:00:05.7]} 38. Re5 {[%clk 0:01:55.1]} 38... Nxg2 {[%clk
0:00:06.3]} 39. Rxe4 {[%clk 0:01:56.5]} 39... Kg6 {[%clk 0:00:07.5]} 40. Ra4
{[%clk 0:01:50.1]} 40... h5 {[%clk 0:00:08.1]} 41. Kf3 {[%clk 0:01:47.3]} 41...
Nh4+ {[%clk 0:00:08.6]} 42. Ke4 {[%clk 0:01:48.8]} 42... g4 {[%clk 0:00:08.7]}
43. hxg4 {[%clk 0:01:49.7]} 43... hxg4 {[%clk 0:00:10]} 44. Kf4 {[%clk
0:01:51.3]} 44... Ng2+ {[%clk 0:00:07.5]} 45. Ke4 {[%clk 0:01:50.9]} 45... Kg5
{[%clk 0:00:07.2]} 46. Ra2 {[%clk 0:01:51.1]} 46... Ne1 {[%clk 0:00:07]} 47. Ra8
{[%clk 0:01:47.2]} 47... Kh4 {[%clk 0:00:07.3]} 48. Kf5 {[%clk 0:01:45.4]} 48...
Nf3 {[%clk 0:00:05.4]} 49. e4 {[%clk 0:01:46.1]} 49... Kg3 {[%clk 0:00:05]} 50.
e5 {[%clk 0:01:47.1]} 50... Nxe5 {[%clk 0:00:04.3]} 51. Kxe5 {[%clk 0:01:49]}
51... Kf2 {[%clk 0:00:05.1]} 52. Kf4 {[%clk 0:01:50]} 52... g3 {[%clk
0:00:06.5]} 53. Ra2+ {[%clk 0:01:51.9]} 1-0

[Event "*** Titled Tuesday Blitz"]
[Site "Chess.com"]
[Date "2020.01.07"]
[Round "1"]
[White "LawrenceTrent"]
[Black "Torrentec"]
[Result "1-0"]
[WhiteElo "2640"]
[BlackElo "2302"]
[TimeControl "180+2"]
[EndTime "13:08:31 PST"]
[Termination "LawrenceTrent won by resignation"]

1. d4 {[%clk 0:02:58.5]} 1... d5 {[%clk 0:02:59.7]} 2. Nc3 {[%clk 0:02:58.8]}
2... Nf6 {[%clk 0:02:54.6]} 3. Bf4 {[%clk 0:02:59]} 3... a6 {[%clk 0:02:55]} 4.
e3 {[%clk 0:02:53.6]} 4... Bf5 {[%clk 0:02:54.2]} 5. f3 {[%clk 0:02:49.5]} 5...
e6 {[%clk 0:02:50.6]} 6. g4 {[%clk 0:02:48.4]} 6... Bg6 {[%clk 0:02:51]} 7. h4
{[%clk 0:02:49.2]} 7... h6 {[%clk 0:02:51.4]} 8. h5 {[%clk 0:02:49]} 8... Bh7
{[%clk 0:02:51.9]} 9. Bd3 {[%clk 0:02:50.3]} 9... Bxd3 {[%clk 0:02:45.9]} 10.
cxd3 {[%clk 0:02:51.8]} 10... Bd6 {[%clk 0:02:47.8]} 11. Nge2 {[%clk 0:02:51.6]}
11... Qe7 {[%clk 0:02:44.8]} 12. Kf2 {[%clk 0:02:51.3]} 12... e5 {[%clk
0:02:42.5]} 13. dxe5 {[%clk 0:02:51.7]} 13... Bxe5 {[%clk 0:02:44.4]} 14. d4
{[%clk 0:02:52.2]} 14... Bxf4 {[%clk 0:02:40.5]} 15. Nxf4 {[%clk 0:02:47.2]}
15... c6 {[%clk 0:02:37.6]} 16. Nce2 {[%clk 0:02:44.5]} 16... Nbd7 {[%clk
0:02:35.8]} 17. Ng3 {[%clk 0:02:45.3]} 17... O-O {[%clk 0:02:33.5]} 18. a3
{[%clk 0:02:37.1]} 18... Rfe8 {[%clk 0:02:31.4]} 19. Nf5 {[%clk 0:02:37.2]}
19... Qd8 {[%clk 0:02:27.7]} 20. Rg1 {[%clk 0:02:19.6]} 20... Nh7 {[%clk
0:02:25]} 21. Qd2 {[%clk 0:02:04.4]} 21... Ndf8 {[%clk 0:02:12.1]} 22. Nh3
{[%clk 0:01:54]} 22... Ne6 {[%clk 0:02:12.7]} 23. Rae1 {[%clk 0:01:45.6]} 23...
Kh8 {[%clk 0:02:02.5]} 24. f4 {[%clk 0:01:33]} 24... c5 {[%clk 0:01:51.2]} 25.
g5 {[%clk 0:01:29.8]} 25... hxg5 {[%clk 0:01:47.6]} 26. Qc3 {[%clk 0:01:13.9]}
26... cxd4 {[%clk 0:01:47.6]} 27. Nxd4 {[%clk 0:01:14.1]} 27... Nxd4 {[%clk
0:01:46.9]} 28. Qxd4 {[%clk 0:01:14.7]} 28... Qf6 {[%clk 0:01:47.1]} 29. Nxg5
{[%clk 0:01:08.6]} 29... Nxg5 {[%clk 0:01:36.3]} 30. Rxg5 {[%clk 0:01:08.6]}
30... Qxd4 {[%clk 0:01:35.4]} 31. exd4 {[%clk 0:01:09.3]} 31... Rxe1 {[%clk
0:01:31.3]} 32. Kxe1 {[%clk 0:01:09.9]} 32... Re8+ {[%clk 0:01:32.9]} 33. Kd2
{[%clk 0:00:59.7]} 33... Re4 {[%clk 0:01:32.4]} 34. Rxd5 {[%clk 0:00:59.9]}
34... Rxf4 {[%clk 0:01:33.8]} 35. Rd7 {[%clk 0:01:00]} 35... b5 {[%clk
0:01:22.1]} 36. d5 {[%clk 0:00:59.6]} 36... Kh7 {[%clk 0:01:04.2]} 37. Ke3
{[%clk 0:00:54.4]} 37... Rf1 {[%clk 0:01:03.3]} 38. d6 {[%clk 0:00:53.7]} 38...
Rd1 {[%clk 0:00:58.8]} 39. Ke4 {[%clk 0:00:51.1]} 39... Kh6 {[%clk 0:00:58]} 40.
Ke5 {[%clk 0:00:52.2]} 40... Re1+ {[%clk 0:00:51.5]} 41. Kd5 {[%clk 0:00:52.8]}
41... f5 {[%clk 0:00:52.9]} 42. Re7 {[%clk 0:00:51]} 42... Rd1+ {[%clk
0:00:52.8]} 43. Kc6 {[%clk 0:00:51.9]} 43... f4 {[%clk 0:00:53.9]} 44. d7 {[%clk
0:00:52.1]} 44... Kxh5 {[%clk 0:00:53.9]} 45. Re5+ {[%clk 0:00:52.4]} 45... g5
{[%clk 0:00:50.4]} 46. Rd5 {[%clk 0:00:53.3]} 46... Rxd5 {[%clk 0:00:48.1]} 47.
Kxd5 {[%clk 0:00:53.8]} 47... f3 {[%clk 0:00:47]} 48. d8=Q {[%clk 0:00:54.7]}
48... g4 {[%clk 0:00:48.8]} 49. Qf6 {[%clk 0:00:53.8]} 49... a5 {[%clk
0:00:45.6]} 50. Ke4 {[%clk 0:00:54]} 50... b4 {[%clk 0:00:46.2]} 51. Kf4 {[%clk
0:00:54.7]} 1-0

[Event "*** Titled Tuesday Blitz"]
[Site "Chess.com"]
[Date "2020.01.07"]
[Round "1"]
[White "Karacsonyi_Gellert"]
[Black "The_Chess_Coach"]
[Result "1-0"]
[WhiteElo "2569"]
[BlackElo "2187"]
[TimeControl "180+2"]
[EndTime "13:08:35 PST"]
[Termination "Karacsonyi_Gellert won by checkmate"]

1. e4 {[%clk 0:03:01.9]} 1... e5 {[%clk 0:02:59.9]} 2. Nf3 {[%clk 0:03:01.7]}
2... Nc6 {[%clk 0:03:01.4]} 3. Bb5 {[%clk 0:03:02.2]} 3... a6 {[%clk 0:03:02.5]}
4. Bxc6 {[%clk 0:03:03.3]} 4... Nf6 {[%clk 0:03:04.4]} 5. O-O {[%clk 0:03:04.9]}
5... dxc6 {[%clk 0:03:04.9]} 6. Nxe5 {[%clk 0:03:05.8]} 6... Be7 {[%clk
0:03:05]} 7. d3 {[%clk 0:03:05]} 7... O-O {[%clk 0:03:05.8]} 8. Nf3 {[%clk
0:03:03.5]} 8... c5 {[%clk 0:03:06.8]} 9. Nc3 {[%clk 0:03:04.3]} 9... b6 {[%clk
0:03:07.8]} 10. h3 {[%clk 0:03:05.3]} 10... Bb7 {[%clk 0:03:06.5]} 11. Bf4
{[%clk 0:03:06.2]} 11... Qd7 {[%clk 0:03:05.4]} 12. Re1 {[%clk 0:03:02.4]} 12...
Rad8 {[%clk 0:03:04.2]} 13. Qe2 {[%clk 0:03:02.2]} 13... Rfe8 {[%clk 0:03:01.2]}
14. Rad1 {[%clk 0:03:03.2]} 14... Bf8 {[%clk 0:02:59.6]} 15. Qf1 {[%clk
0:03:01.4]} 15... h6 {[%clk 0:02:59.7]} 16. Bh2 {[%clk 0:03:02.1]} 16... Qc6
{[%clk 0:02:58.9]} 17. e5 {[%clk 0:02:56]} 17... Nd5 {[%clk 0:02:58.7]} 18. Ne4
{[%clk 0:02:55.9]} 18... b5 {[%clk 0:02:54.3]} 19. a3 {[%clk 0:02:53.8]} 19...
a5 {[%clk 0:02:49.9]} 20. c4 {[%clk 0:02:54.2]} 20... bxc4 {[%clk 0:02:48.5]}
21. dxc4 {[%clk 0:02:56.1]} 21... Nb6 {[%clk 0:02:49.6]} 22. Nc3 {[%clk
0:02:55.4]} 22... Ba6 {[%clk 0:02:47.1]} 23. b3 {[%clk 0:02:52.9]} 23... a4
{[%clk 0:02:48.3]} 24. bxa4 {[%clk 0:02:51.3]} 24... Bxc4 {[%clk 0:02:48.8]} 25.
Ne2 {[%clk 0:02:44.5]} 25... Qxa4 {[%clk 0:02:42.6]} 26. Rxd8 {[%clk 0:02:36.7]}
26... Rxd8 {[%clk 0:02:44.5]} 27. e6 {[%clk 0:02:37.4]} 27... fxe6 {[%clk
0:02:38]} 28. Bxc7 {[%clk 0:02:37.3]} 28... Rc8 {[%clk 0:02:30.8]} 29. Bxb6
{[%clk 0:02:38]} 29... Qa6 {[%clk 0:02:32.2]} 30. Rb1 {[%clk 0:02:15.5]} 30...
Bxe2 {[%clk 0:02:30]} 31. Qe1 {[%clk 0:02:16.4]} 31... Qd3 {[%clk 0:02:05.9]}
32. Ne5 {[%clk 0:01:59.6]} 32... Qe4 {[%clk 0:01:56.7]} 33. Rb2 {[%clk
0:01:42.6]} 33... Qxe5 {[%clk 0:01:31.6]} 34. Rxe2 {[%clk 0:01:42.8]} 34... Qd5
{[%clk 0:01:30]} 35. Rxe6 {[%clk 0:01:34.9]} 35... c4 {[%clk 0:01:30.9]} 36. Re5
{[%clk 0:01:32.6]} 36... Qd6 {[%clk 0:01:28.8]} 37. Ba5 {[%clk 0:01:16.4]} 37...
Qxa3 {[%clk 0:01:09.5]} 38. Bc3 {[%clk 0:01:17.1]} 38... Bd6 {[%clk 0:00:58.4]}
39. Re3 {[%clk 0:01:14.8]} 39... Qc5 {[%clk 0:00:58.2]} 40. Rf3 {[%clk
0:01:12.8]} 40... Qd5 {[%clk 0:00:58.2]} 41. Re3 {[%clk 0:00:59.7]} 41... Rb8
{[%clk 0:00:50.9]} 42. g3 {[%clk 0:00:54.1]} 42... Bc5 {[%clk 0:00:35.8]} 43.
Re5 {[%clk 0:00:47.9]} 43... Qd3 {[%clk 0:00:29.7]} 44. Kg2 {[%clk 0:00:41.2]}
44... Rb1 {[%clk 0:00:22.6]} 45. Re8+ {[%clk 0:00:40.3]} 45... Kh7 {[%clk
0:00:23.1]} 46. Qe5 {[%clk 0:00:41.7]} 46... Bxf2 {[%clk 0:00:15.9]} 47. Qxg7#
{[%clk 0:00:41.7]} 1-0

[Event "*** Titled Tuesday Blitz"]
[Site "Chess.com"]
[Date "2020.01.07"]
[Round "1"]
[White "Zavgorodniy_Serg"]
[Black "tteshan"]
[Result "1-0"]
[WhiteElo "2612"]
[BlackElo "2275"]
[TimeControl "180+2"]
[EndTime "13:08:36 PST"]
[Termination "Zavgorodniy_Serg won by resignation"]

1. e4 {[%clk 0:03:01.9]} 1... c5 {[%clk 0:03:00.5]} 2. Nf3 {[%clk 0:03:02.4]}
2... d6 {[%clk 0:03:00.9]} 3. c3 {[%clk 0:03:03.2]} 3... Nc6 {[%clk 0:02:54.1]}
4. d4 {[%clk 0:03:00.3]} 4... cxd4 {[%clk 0:02:56]} 5. cxd4 {[%clk 0:03:02.2]}
5... g6 {[%clk 0:02:56]} 6. d5 {[%clk 0:03:01.4]} 6... Ne5 {[%clk 0:02:50.5]} 7.
Nxe5 {[%clk 0:03:00.5]} 7... dxe5 {[%clk 0:02:52.4]} 8. Nc3 {[%clk 0:02:59.9]}
8... Nf6 {[%clk 0:02:52.5]} 9. Bg5 {[%clk 0:02:54.6]} 9... Bg7 {[%clk
0:02:52.9]} 10. Bb5+ {[%clk 0:02:49.8]} 10... Bd7 {[%clk 0:02:53.2]} 11. Bxf6
{[%clk 0:02:50.7]} 11... Bxf6 {[%clk 0:02:52.6]} 12. Qa4 {[%clk 0:02:43.4]}
12... a6 {[%clk 0:02:45.1]} 13. Bxd7+ {[%clk 0:02:42.7]} 13... Qxd7 {[%clk
0:02:47]} 14. Qxd7+ {[%clk 0:02:28.9]} 14... Kxd7 {[%clk 0:02:48.9]} 15. Na4
{[%clk 0:02:30.4]} 15... Rad8 {[%clk 0:02:03.3]} 16. Rc1 {[%clk 0:02:27.2]}
16... Bg5 {[%clk 0:01:58.1]} 17. Rc2 {[%clk 0:02:19]} 17... Kd6 {[%clk
0:01:18.5]} 18. Nb6 {[%clk 0:02:18.3]} 18... f6 {[%clk 0:01:18.5]} 19. h4 {[%clk
0:02:16.9]} 19... Bh6 {[%clk 0:01:18.9]} 20. Rh3 {[%clk 0:02:18.5]} 20... e6
{[%clk 0:01:09.7]} 21. Rd3 {[%clk 0:02:01.7]} 21... exd5 {[%clk 0:01:01.6]} 22.
Rxd5+ {[%clk 0:01:55]} 22... Ke6 {[%clk 0:01:02.3]} 23. Rc7 {[%clk 0:01:56.2]}
23... f5 {[%clk 0:00:43.1]} 24. Rxd8 {[%clk 0:01:14.8]} 24... Rxd8 {[%clk
0:00:42.8]} 25. Rxh7 {[%clk 0:01:16]} 25... Bd2+ {[%clk 0:00:42.1]} 26. Ke2
{[%clk 0:01:16.7]} 26... fxe4 {[%clk 0:00:34.2]} 27. Rxb7 {[%clk 0:01:16.8]}
27... Ba5 {[%clk 0:00:35.5]} 28. Nc4 {[%clk 0:01:17.9]} 28... Rd5 {[%clk
0:00:31.7]} 29. Ra7 {[%clk 0:01:11.7]} 29... Bd8 {[%clk 0:00:18.4]} 30. Rxa6+
{[%clk 0:01:11.9]} 30... Kf7 {[%clk 0:00:19.5]} 31. Rd6 {[%clk 0:01:07.3]} 31...
Rc5 {[%clk 0:00:19.5]} 32. Rxd8 {[%clk 0:00:54.3]} 32... Rxc4 {[%clk 0:00:20.1]}
33. Rd2 {[%clk 0:00:55.7]} 33... Ke6 {[%clk 0:00:19.3]} 34. b3 {[%clk
0:00:57.1]} 34... Rb4 {[%clk 0:00:20.3]} 35. Rb2 {[%clk 0:00:58.2]} 35... Kd5
{[%clk 0:00:21.2]} 36. a3 {[%clk 0:00:59.5]} 36... Rb8 {[%clk 0:00:22.5]} 37.
Ke3 {[%clk 0:00:55.2]} 37... Rb7 {[%clk 0:00:14.4]} 38. b4 {[%clk 0:00:55.8]}
38... Ra7 {[%clk 0:00:14.6]} 39. b5 {[%clk 0:00:53.6]} 39... Rxa3+ {[%clk
0:00:15.2]} 40. Ke2 {[%clk 0:00:54.8]} 40... Ra7 {[%clk 0:00:13.5]} 41. b6
{[%clk 0:00:56]} 41... Rb7 {[%clk 0:00:14.9]} 42. Ke3 {[%clk 0:00:57.5]} 42...
Rb8 {[%clk 0:00:13.2]} 43. b7 {[%clk 0:00:58.1]} 43... Kd6 {[%clk 0:00:12.7]}
44. Kxe4 {[%clk 0:00:59.1]} 44... Ke6 {[%clk 0:00:14.1]} 45. Rb6+ {[%clk
0:00:58.8]} 45... Kf7 {[%clk 0:00:14.5]} 46. g4 {[%clk 0:00:58.9]} 46... Kg7
{[%clk 0:00:14.9]} 47. Kxe5 {[%clk 0:00:59.3]} 47... Kf7 {[%clk 0:00:16]} 48.
Kd6 {[%clk 0:00:59.9]} 1-0

[Event "*** Titled Tuesday Blitz"]
[Site "Chess.com"]
[Date "2020.01.07"]
[Round "1"]
[White "Supernotar"]
[Black "CzechmVIII"]
[Result "1-0"]
[WhiteElo "2556"]
[BlackElo "2144"]
[TimeControl "180+2"]
[EndTime "13:08:40 PST"]
[Termination "Supernotar won by resignation"]

1. d4 {[%clk 0:03:01.9]} 1... Nf6 {[%clk 0:03:00]} 2. c4 {[%clk 0:03:01.3]} 2...
c5 {[%clk 0:03:00.9]} 3. Nf3 {[%clk 0:03:01.2]} 3... cxd4 {[%clk 0:03:00.1]} 4.
Nxd4 {[%clk 0:03:02.1]} 4... e5 {[%clk 0:02:59.5]} 5. Nb5 {[%clk 0:03:02.6]}
5... d5 {[%clk 0:03:00.5]} 6. cxd5 {[%clk 0:03:01.6]} 6... Bc5 {[%clk
0:03:01.3]} 7. N5c3 {[%clk 0:03:01.5]} 7... O-O {[%clk 0:03:00.3]} 8. g3 {[%clk
0:03:02.3]} 8... Qb6 {[%clk 0:02:59.6]} 9. e3 {[%clk 0:03:02.9]} 9... Bg4 {[%clk
0:03:00.2]} 10. Be2 {[%clk 0:03:03.6]} 10... Bxe2 {[%clk 0:03:01.2]} 11. Qxe2
{[%clk 0:03:04.2]} 11... Nbd7 {[%clk 0:02:58.4]} 12. e4 {[%clk 0:03:03.7]} 12...
Bd4 {[%clk 0:02:44.1]} 13. O-O {[%clk 0:03:03.4]} 13... Nc5 {[%clk 0:02:39.5]}
14. Nd2 {[%clk 0:02:57.7]} 14... Rac8 {[%clk 0:02:21.5]} 15. Kg2 {[%clk
0:02:51]} 15... Rfe8 {[%clk 0:02:12.1]} 16. f3 {[%clk 0:02:37]} 16... a6 {[%clk
0:01:56.4]} 17. Rd1 {[%clk 0:02:36.1]} 17... Qc7 {[%clk 0:01:52.5]} 18. Nf1
{[%clk 0:02:32.3]} 18... Bxc3 {[%clk 0:01:50]} 19. bxc3 {[%clk 0:02:32.3]} 19...
Na4 {[%clk 0:01:51.2]} 20. Bd2 {[%clk 0:02:26.6]} 20... Nxc3 {[%clk 0:01:45.8]}
21. Bxc3 {[%clk 0:02:27.1]} 21... Qxc3 {[%clk 0:01:46.8]} 22. Rab1 {[%clk
0:02:27.5]} 22... b5 {[%clk 0:01:45.2]} 23. Rd3 {[%clk 0:02:26.1]} 23... Qc2
{[%clk 0:01:40.7]} 24. Rb2 {[%clk 0:02:26.3]} 24... Qxe2+ {[%clk 0:01:40.8]} 25.
Rxe2 {[%clk 0:02:26.9]} 25... Rc4 {[%clk 0:01:38]} 26. Ra3 {[%clk 0:02:26.8]}
26... Ra4 {[%clk 0:01:30.1]} 27. Rxa4 {[%clk 0:02:26]} 27... bxa4 {[%clk
0:01:31.5]} 28. Rb2 {[%clk 0:02:25]} 28... Rc8 {[%clk 0:01:30.6]} 29. Rb4 {[%clk
0:02:21.1]} 29... a3 {[%clk 0:01:25.5]} 30. Rb3 {[%clk 0:02:19.6]} 30... Rc2+
{[%clk 0:01:22.7]} 31. Kg1 {[%clk 0:02:19.6]} 31... Nd7 {[%clk 0:01:16.9]} 32.
Rxa3 {[%clk 0:02:19.6]} 32... Nc5 {[%clk 0:01:17.7]} 33. Ne3 {[%clk 0:02:18.7]}
33... Re2 {[%clk 0:01:11.4]} 34. Nc4 {[%clk 0:02:11]} 34... h5 {[%clk
0:01:10.8]} 35. Nxe5 {[%clk 0:02:09.6]} 35... h4 {[%clk 0:01:09.4]} 36. gxh4
{[%clk 0:02:10.1]} 36... f6 {[%clk 0:01:07]} 37. Ra5 {[%clk 0:02:10.1]} 37...
fxe5 {[%clk 0:00:59.2]} 38. Rxc5 {[%clk 0:02:10.3]} 38... Rxa2 {[%clk
0:01:00.3]} 39. Rc6 {[%clk 0:02:07.2]} 39... Kf7 {[%clk 0:00:59.9]} 40. Re6
{[%clk 0:02:05.7]} 40... a5 {[%clk 0:01:00.5]} 41. Rxe5 {[%clk 0:02:06.8]} 41...
a4 {[%clk 0:01:02]} 42. d6 {[%clk 0:02:07.8]} 42... Rd2 {[%clk 0:01:01.9]} 43.
Ra5 {[%clk 0:02:07.4]} 43... Rxd6 {[%clk 0:01:00.2]} 44. Rxa4 {[%clk 0:02:08.1]}
44... Rd2 {[%clk 0:01:00.3]} 45. Ra5 {[%clk 0:02:06.2]} 45... Kg6 {[%clk
0:01:00.9]} 46. Rg5+ {[%clk 0:02:07.1]} 46... Kf6 {[%clk 0:01:01.8]} 47. Rg2
{[%clk 0:02:08.1]} 47... Rd3 {[%clk 0:00:55.2]} 48. Kf2 {[%clk 0:02:08.9]} 48...
Ra3 {[%clk 0:00:56.4]} 49. Kg3 {[%clk 0:02:09.7]} 49... Ke5 {[%clk 0:00:55.3]}
50. Rd2 {[%clk 0:02:09.4]} 50... g6 {[%clk 0:00:43.9]} 51. Rd5+ {[%clk
0:02:09.1]} 51... Kf6 {[%clk 0:00:44.8]} 52. Kf4 {[%clk 0:02:09.7]} 52... Ra2
{[%clk 0:00:45]} 53. Rd6+ {[%clk 0:02:10.2]} 53... Kg7 {[%clk 0:00:46.2]} 54. h3
{[%clk 0:02:10]} 54... Rg2 {[%clk 0:00:46.3]} 55. e5 {[%clk 0:02:08]} 55... Re2
{[%clk 0:00:44.2]} 56. Rd7+ {[%clk 0:02:08.5]} 56... Kh6 {[%clk 0:00:43.4]} 57.
h5 {[%clk 0:02:05.5]} 57... gxh5 {[%clk 0:00:36.5]} 58. Kf5 {[%clk 0:02:05.6]}
58... Rh2 {[%clk 0:00:31.4]} 59. e6 {[%clk 0:02:04.8]} 59... Rxh3 {[%clk
0:00:30.7]} 60. f4 {[%clk 0:02:05.6]} 60... Re3 {[%clk 0:00:30.9]} 61. e7 {[%clk
0:02:04]} 61... h4 {[%clk 0:00:24.1]} 62. Rd6+ {[%clk 0:02:01.5]} 62... Kg7
{[%clk 0:00:23]} 63. Re6 {[%clk 0:02:02.4]} 63... Rxe6 {[%clk 0:00:13.9]} 64.
Kxe6 {[%clk 0:02:03]} 64... h3 {[%clk 0:00:15.5]} 65. e8=Q {[%clk 0:02:03.6]}
65... h2 {[%clk 0:00:14.9]} 66. Qh5 {[%clk 0:02:04.2]} 1-0